fUSD/lending_fUSD_20241107
["ID","MTS","AMOUNT","RATE_DAILY","PERIOD"]
[341532362,1730963444960,-1289.15,0.00031493,4]
[341532363,1730963444969,-503.83582851,0.00031493,4]
[341532364,1730963444978,-500.0,0.00031493,4]
[341532365,1730963444990,-500.0,0.00031493,4]
[341532366,1730963445000,-200.0,0.00031493,4]
[341532367,1730963445010,-611.7,0.00031493,4]
[341532368,1730963445022,-166.99448453,0.00031493,4]
[341532369,1730963445031,-507.4,0.00031493,4]
[341532370,1730963445041,-500.0,0.00031493,4]
[341532371,1730963445050,-488.34,0.00031493,4]
[341532372,1730963445061,-500.0,0.00031493,4]
[341532373,1730963445071,-535.46108489,0.00031493,4]
[341532374,1730963445080,-500.0,0.00031493,4]
[341532375,1730963445090,-715.23,0.00031493,4]
[341532376,1730963445100,-500.0,0.00031493,4]
[341532377,1730963445110,-500.0,0.00031493,4]
[341532378,1730963445120,-500.0,0.00031493,4]
[341532379,1730963445129,-822.78,0.00031493,4]
[341532380,1730963445139,-1250.59,0.00031493,4]
[341532381,1730963445148,-500.0,0.00031493,4]
[341532382,1730963445158,-820.42,0.00031493,4]
[341532383,1730963445169,-500.0,0.00031493,4]
[341532384,1730963445178,-592.29,0.00031493,4]
[341532385,1730963445187,-500.0,0.00031493,4]
[341532386,1730963445197,-500.0,0.00031493,4]
[341532387,1730963445206,-500.0,0.00031493,4]
[341532388,1730963445215,-500.0,0.00031493,4]
[341532389,1730963445225,-535.22010009,0.00031493,4]
[341532390,1730963445234,-500.0,0.00031493,4]
[341532391,1730963445245,-568.29,0.00031493,4]
[341532392,1730963445255,-500.0,0.00031493,4]
[341532393,1730963445264,-500.0,0.00031493,4]
[341532394,1730963445274,-500.0,0.00031493,4]
[341532395,1730963445283,-636.92,0.00031493,4]
[341532396,1730963445293,-500.0,0.00031493,4]
[341532397,1730963445303,-837.14,0.00031493,4]
[341532398,1730963445312,-500.0,0.00031493,4]
[341532399,1730963445322,-500.0,0.00031493,4]
[341532400,1730963445331,-500.0,0.00031493,4]
[341532401,1730963445341,-500.0,0.00031493,4]
[341532402,1730963445350,-500.0,0.00031493,4]
[341532403,1730963445360,-571.14,0.00031493,4]
[341532404,1730963445370,-500.0,0.00031493,4]
[341532405,1730963445380,-597.27,0.00031493,4]
[341532406,1730963445394,-500.0,0.00031493,4]
[341532407,1730963445405,-572.58,0.00031493,4]
[341532408,1730963445415,-500.0,0.00031493,4]
[341532409,1730963445425,-500.0,0.00031493,4]
[341532410,1730963445435,-542.82,0.00031493,4]
[341532411,1730963445445,-847.61,0.00031493,4]
[341532412,1730963445455,-500.0,0.00031493,4]
[341532413,1730963445465,-1107.72,0.00031493,4]
[341532414,1730963445476,-550.28,0.00031493,4]
[341532415,1730963445489,-500.0,0.00031493,4]
[341532417,1730963445500,-1319.67,0.00031493,4]
[341532419,1730963445512,-795.93,0.00031493,4]
[341532420,1730963445523,-500.0,0.00031493,4]
[341532422,1730963445533,-500.0,0.00031493,4]
[341532423,1730963445544,-500.0,0.00031493,4]
[341532424,1730963445555,-765.0,0.00031493,4]
[341532425,1730963445566,-588.18,0.00031493,4]
[341532426,1730963445576,-500.0,0.00031493,4]
[341532427,1730963445586,-500.0,0.00031493,4]
[341532428,1730963445597,-532.2,0.00031493,4]
[341532429,1730963445607,-651.36,0.00031493,4]
[341532430,1730963445618,-584.34,0.00031493,4]
[341532431,1730963445627,-500.0,0.00031493,4]
[341532432,1730963445637,-500.0,0.00031493,4]
[341532433,1730963445648,-500.0,0.00031493,4]
[341532434,1730963445658,-500.0,0.00031493,4]
[341532435,1730963445669,-618.37,0.00031493,4]
[341532436,1730963445679,-500.0,0.00031493,4]
[341532437,1730963445689,-500.0,0.00031493,4]
[341532438,1730963445700,-500.0,0.00031493,4]
[341532439,1730963445710,-510.88019919,0.00031493,4]
[341532440,1730963445721,-594.45,0.00031493,4]
[341532441,1730963445731,-500.0,0.00031493,4]
[341532442,1730963445743,-500.0,0.00031493,4]
[341532443,1730963445754,-500.0,0.00031493,4]
[341532444,1730963445764,-500.0,0.00031493,4]
[341532445,1730963445775,-500.0,0.00031493,4]
[341532446,1730963445786,-663.85,0.00031493,4]
[341532447,1730963445797,-500.0,0.00031493,4]
[341532448,1730963445808,-500.0,0.00031493,4]
[341532449,1730963445820,-500.0,0.00031493,4]
[341532450,1730963445830,-500.0,0.00031493,4]
[341532451,1730963445841,-500.0,0.00031493,4]
[341532452,1730963445852,-500.0,0.00031493,4]
[341532453,1730963445863,-602.19,0.00031493,4]
[341532454,1730963445874,-1066.22,0.00031493,4]
[341532455,1730963445884,-1188.22,0.00031493,4]
[341532456,1730963445895,-508.20050735,0.00031493,4]
[341532457,1730963445906,-500.0,0.00031493,4]
[341532458,1730963445917,-596.11,0.00031493,4]
[341532459,1730963445928,-615.89,0.00031493,4]
[341532460,1730963445939,-500.0,0.00031493,4]
[341532461,1730963445949,-500.0,0.00031493,4]
[341532462,1730963445960,-500.0,0.00031493,4]
[341532463,1730963445970,-500.0,0.00031493,4]
[341532464,1730963445981,-522.78412302,0.00031493,4]
[341532465,1730963445992,-1071.72,0.00031493,4]
[341532466,1730963446003,-2444.61,0.00031493,4]
[341532467,1730963446015,-500.0,0.00031493,4]
[341532468,1730963446028,-500.0,0.00031493,4]
[341532469,1730963446039,-500.0,0.00031493,4]
[341532470,1730963446050,-500.0,0.00031493,4]
[341532471,1730963446062,-1314.22,0.00031493,4]
[341532472,1730963446074,-504.05216709,0.00031493,4]
[341532473,1730963446085,-500.0,0.00031493,4]
[341532474,1730963446096,-500.0,0.00031493,4]
[341532475,1730963446108,-667.81,0.00031493,4]
[341532476,1730963446119,-500.0,0.00031493,4]
[341532477,1730963446130,-500.0,0.00031493,4]
[341532478,1730963446141,-798.19,0.00031493,4]
[341532479,1730963446153,-500.0,0.00031493,2]
[341532480,1730963446164,-500.0,0.00031493,4]
[341532481,1730963446175,-2131.62,0.00031493,4]
[341532482,1730963446186,-500.0,0.00031493,4]
[341532483,1730963446198,-500.0,0.00031493,4]
[341532484,1730963446208,-2218.54,0.00031493,4]
[341532485,1730963446220,-500.0,0.00031493,4]
[341532486,1730963446231,-500.0,0.00031493,4]
[341532487,1730963446243,-500.0,0.00031493,4]
[341532488,1730963446255,-500.0,0.00031493,4]
[341532489,1730963446265,-1353.98,0.00031493,4]
[341532490,1730963446277,-6360.31,0.00031493,4]
[341532492,1730963446288,-500.0,0.00031493,4]
[341532493,1730963446300,-500.0,0.00031493,4]
[341532494,1730963446312,-500.0,0.00031493,4]
[341532495,1730963446322,-500.0,0.00031493,4]
[341532496,1730963446333,-500.0,0.00031493,4]
[341532497,1730963446344,-500.0,0.00031493,4]
[341532498,1730963446354,-1143.71,0.00031493,4]
[341532499,1730963446365,-1093.23,0.00031493,4]
[341532500,1730963446375,-500.0,0.00031493,4]
[341532501,1730963446387,-500.0,0.00031493,4]
[341532502,1730963446398,-746.66,0.00031493,4]
[341532503,1730963446409,-500.0,0.00031493,4]
[341532504,1730963446421,-490.12576546,0.00031493,4]
[341532505,1730963446432,-1180.12,0.00031493,4]
[341532506,1730963446443,-500.0,0.00031493,4]
[341532507,1730963446454,-1042.63,0.00031493,4]
[341532508,1730963446465,-500.0,0.00031493,4]
[341532509,1730963446476,-500.0,0.00031493,4]
[341532510,1730963446487,-500.0,0.00031493,4]
[341532511,1730963446498,-500.0,0.00031493,4]
[341532512,1730963446509,-1601.71,0.00031493,4]
[341532513,1730963446520,-500.0,0.00031493,4]
[341532514,1730963446531,-500.0,0.00031493,4]
[341532515,1730963446544,-500.0,0.00031493,4]
[341532516,1730963446554,-500.0,0.00031493,4]
[341532517,1730963446565,-1005.47,0.00031493,4]
[341532518,1730963446576,-742.16,0.00031493,4]
[341532519,1730963446588,-500.0,0.00031493,4]
[341532520,1730963446599,-3051.86,0.00031493,4]
[341532521,1730963446610,-500.0,0.00031493,4]
[341532522,1730963446621,-500.0,0.00031493,4]
[341532523,1730963446632,-500.0,0.00031493,4]
[341532524,1730963446643,-500.0,0.00031493,4]
[341532525,1730963446654,-2451.33348733,0.00031493,4]
[341532526,1730963446681,-625.23651267,0.00031493,4]
[341532527,1730963446692,-500.0,0.00031493,4]
[341532528,1730963446703,-500.0,0.00031493,4]
[341532529,1730963446714,-264.55348029,0.00031493,4]
[341532530,1730963446726,-756.74651971,0.00031493,4]
[341532531,1730963446737,-449.77916043,0.00031493,4]
[341532532,1730963446754,-50.22083957,0.00031493,4]
[341532533,1730963446764,-500.0,0.00031493,4]
[341532534,1730963446774,-500.0,0.00031493,4]
[341532535,1730963446785,-500.0,0.00031493,4]
[341532536,1730963446795,-500.0,0.00031493,4]
[341532537,1730963446805,-625.12,0.00031493,4]
[341532538,1730963446816,-1071.61,0.00031493,4]
[341532539,1730963446827,-1009.09,0.00031493,4]
[341532540,1730963446837,-500.0,0.00031493,4]
[341532541,1730963446847,-500.0,0.00031493,4]
[341532542,1730963446858,-500.0,0.00031493,4]
[341532543,1730963446868,-1147.95916043,0.00031493,4]
[341532544,1730963446885,-357.56024888,0.00031493,4]
[341532545,1730963447415,-1193.73059069,0.00031493,4]
[341532546,1730963447427,-500.0,0.00031493,4]
[341532547,1730963447438,-500.0,0.00031493,4]
[341532548,1730963447449,-504.05,0.00031493,4]
[341532549,1730963447460,-1427.61614214,0.00031493,4]
[341532550,1730963447473,-56.16385786,0.00031493,4]
[341532551,1730963447483,-500.0,0.00031493,4]
[341532552,1730963447494,-47.83614214,0.00031493,4]
[341532553,1730963447616,-452.16385786,0.00031493,4]
[341532554,1730963447626,-636.36,0.00031493,4]
[341532555,1730963447637,-500.0,0.00031493,4]
[341532556,1730963447648,-500.0,0.00031493,4]
[341532557,1730963447658,-2314.73,0.00031493,4]
[341532558,1730963447669,-500.0,0.00031493,4]
[341532559,1730963447678,-500.0,0.00031493,4]
[341532560,1730963447688,-708.48,0.00031493,4]
[341532561,1730963447699,-500.0,0.00031493,4]
[341532562,1730963447708,-188.26614214,0.00031493,4]
[341532563,1730963447814,-429.06385786,0.00031493,4]
[341532564,1730963447825,-500.0,0.00031493,4]
[341532565,1730963447835,-500.0,0.00031493,4]
[341532566,1730963447845,-500.0,0.00031493,4]
[341532567,1730963447855,-596.26,0.00031493,4]
[341532568,1730963447865,-906.16,0.00031493,4]
[341532569,1730963447875,-500.0,0.00031493,4]
[341532570,1730963447885,-236.6543877,0.00031493,4]
[341532571,1730963447895,-510.34,0.00031493,4]
[341532572,1730963447905,-500.0,0.00031493,4]
[341532573,1730963447915,-427.69175444,0.00031493,4]
[341532574,1730963448020,-72.30824556,0.00031493,4]
[341532575,1730963448030,-500.0,0.00031493,4]
[341532576,1730963448040,-492.32162844,0.00031493,4]
[341532577,1730963482213,150.0,0.00018123,2]
[341532578,1730963522633,207.0,0.00023,2]
[341532579,1730963583059,201.9488045,0.00023,2]
[341532582,1730963611834,158.17,0.00015342,2]
[341532583,1730963702016,300.0,0.00019725,2]
[341532584,1730963720828,250.0,0.00021,2]
[341532585,1730963721963,300.0,0.00023,2]
[341532586,1730963761924,300.0,0.00019725,2]
[341532587,1730963762659,316.0,0.00021484,2]
[341532598,1730964219401,162.0,0.00015342,2]
[341532599,1730964308751,58011.8811955,0.00016,2]
[341532600,1730964308780,281276.49131399,0.00016,2]
[341532601,1730964320614,1789.56875782,9e-05,2]
[341532602,1730964330131,792.21994176,0.000101,2]
[341532603,1730964414297,500.0,0.00016,2]
[341532604,1730964414353,1000.0,0.0001737,2]
[341532605,1730964414407,1500.0,0.00019875,2]
[341532606,1730964425103,-187.49534132,0.00023118,2]
[341532607,1730964433107,-440.99065803,0.00022,2]
[341532608,1730964439330,-1975.12061022,0.00022,2]
[341532609,1730964445079,-525.83748581,0.00022,2]
[341532612,1730964480346,1662.76295514,0.000145,3]
[341532613,1730964482417,41319.23704486,0.00015,2]
[341532614,1730964482446,1863888.03309172,0.00015,2]
[341532616,1730964519916,150.0,0.0002,2]
[341532622,1730964546102,-458.40864666,0.000209,2]
[341532623,1730964546123,-20273.98429931,0.00021,4]
[341532624,1730964546145,-13633.16348334,0.00021,4]
[341532625,1730964546167,-41780.91424086,0.00022,2]
[341532626,1730964546188,-13820.13572611,0.00023922,2]
[341532627,1730964546210,-2010.20003661,0.00023982,2]
[341532628,1730964546232,-8780.2612798,0.00023982,2]
[341532629,1730964546253,-9181.6261515,0.00023999,2]
[341532630,1730964546288,-500.0,0.00024009,2]
[341532631,1730964546312,-500.0,0.00024009,2]
[341532632,1730964546335,-500.0,0.00024009,2]
[341532633,1730964546371,-500.0,0.00024009,2]
[341532634,1730964546395,-500.0,0.00024009,2]
[341532635,1730964546421,-500.0,0.00024009,2]
[341532636,1730964546445,-500.0,0.00024009,2]
[341532637,1730964546469,-500.0,0.00024009,2]
[341532638,1730964546492,-500.0,0.00024009,2]
[341532639,1730964546516,-500.0,0.00024009,2]
[341532640,1730964546539,-193.86009596,0.00024009,2]
[341532641,1730964546560,-123999.59994984,0.0002401,2]
[341532642,1730964546581,-468.03,0.0002401,2]
[341532643,1730964546602,-161.96074875,0.000248,2]
[341532644,1730964546625,-172.924884,0.000249,2]
[341532645,1730964546648,-500.0,0.00024932,2]
[341532646,1730964546671,-372.1,0.00024932,2]
[341532647,1730964546694,-350.0,0.00025,2]
[341532648,1730964546716,-559.51051803,0.00025,2]
[341532649,1730964546739,-638.11473659,0.00025,120]
[341532650,1730964546761,-3115.34279189,0.00025,60]
[341532651,1730964546782,-1464.09585004,0.00025,2]
[341532652,1730964546804,-1739.54990852,0.000256,2]
[341532653,1730964551135,-62.57039148,0.000256,2]
[341532654,1730964551156,-2252.0,0.000257,3]
[341532655,1730964551175,-729.88700164,0.000264,2]
[341532656,1730964551195,-1483.93,0.00026805,2]
[341532657,1730964551216,-400.0,0.00027,2]
[341532658,1730964556116,-500.0,0.000274,7]
[341532659,1730964556138,-1947.7,0.00027761,5]
[341532665,1730964571092,-237.96,0.00027961,2]
[341532666,1730964571115,-525.05,0.00028533,2]
[341532670,1730964618248,150.0,0.00018123,2]
[341532680,1730964631831,-942.39,0.00028742,2]
[341532682,1730964631840,-5132.61,0.00028788,2]
[341532683,1730964631852,-700.0,0.00028788,2]
[341532684,1730964631880,-18067.39,0.00028788,2]
[341532685,1730964631889,-171.14,0.00028966,2]
[341532686,1730964631899,-525.05,0.00028991,2]
[341532687,1730964631908,-9075.31891388,0.00029,2]
[341532688,1730964631918,-450.0,0.00029,2]
[341532689,1730964631927,-591.51167135,0.00029,2]
[341532690,1730964631937,-1483.93,0.00029069,2]
[341532691,1730964631948,-250.0,0.00029301,2]
[341532692,1730964631957,-200.0,0.00029306,2]
[341532693,1730964631966,-200.0,0.00029315,7]
[341532694,1730964631975,-250.0,0.00029359,2]
[341532695,1730964631984,-1000.0,0.00029385,2]
[341532696,1730964631993,-168.22,0.00029446,2]
[341532697,1730964632002,-525.05,0.0002945,2]
[341532698,1730964632011,-150.0,0.00029463,2]
[341532699,1730964632020,-315.02,0.00029468,120]
[341532700,1730964632029,-204.03,0.00029553,2]
[341532701,1730964632039,-200.0,0.000296,2]
[341532702,1730964632048,-250.0,0.00029721,2]
[341532703,1730964632057,-208.58,0.00029733,30]
[341532704,1730964632066,-166.16,0.00029794,2]
[341532705,1730964632076,-8559.39654477,0.000299,2]
[341532706,1730964632096,-9211.95742869,0.000299,2]
[341532707,1730964632186,-4940.35435108,0.000299,2]
[341532708,1730964632210,-1802.1000002,0.000299,2]
[341532709,1730964632222,-693.85400277,0.000299,2]
[341532710,1730964632231,-525.05,0.00029908,2]
[341532711,1730964632240,-250.0,0.0003,120]
[341532712,1730964632250,-3140.53285392,0.0003,3]
[341532714,1730964632259,-162.591,0.0003,2]
[341532716,1730964632268,-162.591,0.0003,2]
[341532717,1730964632277,-1973.24206995,0.0003,14]
[341532718,1730964632286,-2025.29061843,0.0003,15]
[341532719,1730964632295,-4477.72527719,0.0003,2]
[341532720,1730964632304,-2000.0,0.0003,14]
[341532721,1730964632313,-274.42103981,0.0003,30]
[341532722,1730964632322,-152.0,0.00030018,3]
[341532723,1730964632331,-500.0,0.00030136,4]
[341532724,1730964632341,-500.0,0.00030136,4]
[341532725,1730964632350,-500.0,0.00030136,4]
[341532726,1730964632359,-613.55,0.00030136,4]
[341532727,1730964632369,-500.0,0.00030136,4]
[341532728,1730964632379,-220.51144692,0.00030136,4]
[341532729,1730964632389,-1514.76,0.00030136,4]
[341532730,1730964632398,-173.98,0.00030137,2]
[341532731,1730964632407,-40316.0,0.00030155,2]
[341532732,1730964632418,-167.69,0.00030299,2]
[341532733,1730964632427,-166.84,0.00030344,2]
[341532734,1730964632436,-525.05,0.00030367,2]
[341532735,1730964632447,-254.15,0.00030377,120]
[341532736,1730964632456,-500.0,0.0003041,4]
[341532737,1730964632465,-500.0,0.0003041,4]
[341532738,1730964632474,-500.0,0.0003041,4]
[341532739,1730964632483,-613.55,0.0003041,4]
[341532740,1730964632492,-500.0,0.0003041,4]
[341532741,1730964632502,-1514.76,0.0003041,4]
[341532742,1730964632511,-5149.07734807,0.00030468,2]
[341532743,1730964632520,-162.0,0.00030548,2]
[341532744,1730964632529,-500.0,0.00030684,4]
[341532745,1730964632539,-443.27949819,0.00030684,4]
[341532746,1730964632548,-500.0,0.00030684,4]
[341532747,1730964632557,-613.55,0.00030684,4]
[341532748,1730964632565,-500.0,0.00030684,4]
[341532749,1730964632574,-1514.76,0.00030684,4]
[341532750,1730964632583,-525.05,0.00030825,2]
[341532751,1730964632593,-500.0,0.00030958,4]
[341532752,1730964632602,-500.0,0.00030958,4]
[341532753,1730964632612,-613.55,0.00030958,4]
[341532754,1730964632621,-500.0,0.00030958,4]
[341532755,1730964632631,-1514.76,0.00030958,4]
[341532756,1730964632644,-152.0,0.00030988,4]
[341532757,1730964632655,-500.0,0.00031,2]
[341532758,1730964632664,-204.03,0.00031031,2]
[341532759,1730964632673,-2017.9943,0.00031098,2]
[341532760,1730964632682,-671.5924,0.00031098,2]
[341532761,1730964632691,-8119.26550276,0.00031179,2]
[341532762,1730964632703,-587.66583,0.0003118,2]
[341532763,1730964632712,-9852.9201,0.00031198,2]
[341532764,1730964632721,-10132.0198,0.00031198,2]
[341532765,1730964632731,-2102.4964,0.00031198,2]
[341532766,1730964632740,-3265.6921,0.00031198,2]
[341532767,1730964632749,-846.7105,0.00031198,2]
[341532768,1730964632759,-500.0,0.00031232,4]
[341532769,1730964632768,-500.0,0.00031232,4]
[341532770,1730964632777,-613.55,0.00031232,4]
[341532771,1730964632787,-500.0,0.00031232,4]
[341532772,1730964632796,-1514.76,0.00031232,4]
[341532773,1730964632805,-525.05,0.00031284,2]
[341532774,1730964632815,-5948.67714795,0.00031291,15]
[341532775,1730964632826,-218.58230076,0.00031292,2]
[341532776,1730964632835,-328.09670175,0.00031292,2]
[341532777,1730964632845,-12181.649,0.00031292,2]
[341532778,1730964632854,-1402.7873,0.00031292,2]
[341532779,1730964632863,-1000.0,0.00031292,2]
[341532780,1730964632873,-2500.0,0.00031292,2]
[341532781,1730964632882,-500.0,0.00031293,2]
[341532782,1730964632891,-240.70350816,0.00031293,4]
[341532783,1730964632900,-1483.93,0.00031333,2]
[341532784,1730964632909,-240.70350814,0.00031342,4]
[341532785,1730964632918,-500.0,0.00031373,5]
[341532786,1730964632927,-178.07935769,0.00031382,2]
[341532787,1730964632938,-11026.57609015,0.00031391,2]
[341532788,1730964632949,-500.0,0.00031391,4]
[341532789,1730964632959,-500.0,0.00031391,4]
[341532790,1730964632968,-472.33739853,0.00031391,4]
[341532791,1730964632977,-3513.42,0.00031391,4]
[341532792,1730964632986,-500.0,0.00031391,4]
[341532793,1730964632996,-500.0,0.00031391,4]
[341532794,1730964633005,-513.08,0.00031391,4]
[341532795,1730964633015,-376.896662,0.00031391,4]
[341532796,1730964633023,-500.0,0.00031391,4]
[341532797,1730964633033,-2152.31,0.00031391,4]
[341532798,1730964633042,-500.0,0.00031391,4]
[341532799,1730964633051,-656.53,0.00031391,4]
[341532800,1730964633060,-617.13,0.00031391,4]
[341532801,1730964633069,-157.950212,0.00031391,4]
[341532802,1730964633079,-349.888212,0.00031391,4]
[341532803,1730964633089,-153.1758,0.00031391,4]
[341532804,1730964633098,-3463.51,0.00031391,4]
[341532805,1730964633107,-1372.29,0.00031391,4]
[341532806,1730964633117,-8948.96,0.00031391,4]
[341532807,1730964633126,-880.88,0.00031391,4]
[341532808,1730964633136,-1050.62,0.00031391,4]
[341532809,1730964633145,-500.0,0.00031391,4]
[341532810,1730964633154,-1723.18,0.00031391,4]
[341532811,1730964633164,-932.99,0.00031391,4]
[341532812,1730964633173,-500.0,0.00031391,4]
[341532813,1730964633183,-500.0,0.00031391,4]
[341532814,1730964633193,-500.0,0.00031391,4]
[341532815,1730964633203,-6509.76,0.00031391,4]
[341532816,1730964633212,-1234.68,0.00031391,4]
[341532817,1730964633223,-1169.63,0.00031391,4]
[341532818,1730964633234,-1545.4,0.00031391,4]
[341532819,1730964633243,-1038.41,0.00031391,4]
[341532820,1730964633253,-553.95,0.00031391,4]
[341532821,1730964633262,-1119.21,0.00031391,4]
[341532822,1730964633271,-4410.7,0.00031391,4]
[341532823,1730964633280,-2192.76,0.00031391,4]
[341532824,1730964633289,-2890.28,0.00031391,4]
[341532825,1730964633299,-565.95,0.00031391,4]
[341532826,1730964633308,-1670.43,0.00031391,4]
[341532827,1730964633317,-500.0,0.00031391,4]
[341532828,1730964633327,-2992.79,0.00031391,4]
[341532829,1730964633336,-4163.18,0.00031391,4]
[341532830,1730964633346,-940.62,0.00031391,4]
[341532831,1730964633355,-500.0,0.00031391,4]
[341532832,1730964633365,-2009.7,0.00031391,4]
[341532833,1730964633377,-1435.75,0.00031391,4]
[341532834,1730964633386,-533.87,0.00031391,4]
[341532835,1730964633395,-2095.78,0.00031391,4]
[341532836,1730964633405,-500.0,0.00031391,4]
[341532837,1730964633415,-1581.54,0.00031391,4]
[341532838,1730964633424,-267.27404837,0.00031391,4]
[341532839,1730964633433,-911.51,0.00031391,4]
[341532840,1730964633445,-500.0,0.00031391,4]
[341532841,1730964633455,-3386.51,0.00031391,4]
[341532842,1730964633464,-500.0,0.00031391,4]
[341532843,1730964633473,-451.25758379,0.00031391,4]
[341532844,1730964633483,-500.0,0.00031391,4]
[341532845,1730964633492,-500.0,0.00031391,4]
[341532846,1730964633502,-606.51,0.00031391,4]
[341532847,1730964633511,-500.0,0.00031391,4]
[341532848,1730964633520,-659.3,0.00031391,4]
[341532849,1730964633529,-500.0,0.00031391,4]
[341532850,1730964633539,-500.0,0.00031391,4]
[341532851,1730964633548,-1089.06,0.00031391,4]
[341532852,1730964633558,-1672.59,0.00031391,4]
[341532853,1730964633567,-240.70350814,0.00031391,4]
[341532854,1730964633826,-500.0,0.00031391,4]
[341532855,1730964633836,-647.3,0.00031391,4]
[341532856,1730964633845,-500.0,0.00031391,4]
[341532857,1730964633855,-500.0,0.00031391,4]
[341532858,1730964633864,-553.52,0.00031391,4]
[341532859,1730964633874,-500.0,0.00031391,4]
[341532860,1730964633883,-1027.07,0.00031391,4]
[341532861,1730964633894,-3795.53,0.00031391,4]
[341532862,1730964633903,-500.0,0.00031392,4]
[341532863,1730964633912,-500.0,0.00031392,4]
[341532864,1730964633922,-500.0,0.00031392,4]
[341532865,1730964633933,-819.35,0.00031392,4]
[341532866,1730964633943,-500.0,0.00031392,4]
[341532867,1730964633955,-500.0,0.00031392,4]
[341532868,1730964633964,-500.0,0.00031392,4]
[341532869,1730964633974,-542.05509896,0.00031392,4]
[341532870,1730964633983,-847.19,0.00031392,4]
[341532871,1730964633993,-570.21,0.00031392,4]
[341532872,1730964634003,-500.0,0.00031392,4]
[341532873,1730964634012,-500.0,0.00031392,4]
[341532874,1730964634021,-500.0,0.00031392,4]
[341532875,1730964634031,-500.0,0.00031392,4]
[341532876,1730964634040,-500.0,0.00031392,4]
[341532877,1730964634050,-287.748062,0.00031392,4]
[341532878,1730964634059,-501.22,0.00031392,4]
[341532879,1730964634069,-641.57957022,0.00031392,4]
[341532880,1730964634078,-500.0,0.00031392,4]
[341532881,1730964634087,-150.09732268,0.00031392,4]
[341532882,1730964634097,-500.0,0.00031392,4]
[341532883,1730964634106,-500.0,0.00031392,4]
[341532884,1730964634115,-968.95,0.00031392,4]
[341532885,1730964634124,-543.09,0.00031392,4]
[341532886,1730964634134,-500.0,0.00031392,4]
[341532887,1730964634143,-544.31,0.00031392,4]
[341532888,1730964634152,-550.87573626,0.00031392,4]
[341532889,1730964634162,-500.0,0.00031392,4]
[341532890,1730964634171,-500.0,0.00031392,4]
[341532891,1730964634180,-500.0,0.00031392,4]
[341532892,1730964634190,-1905.15,0.00031392,4]
[341532893,1730964634199,-500.0,0.00031392,4]
[341532894,1730964634208,-689.13,0.00031392,4]
[341532895,1730964634217,-500.0,0.00031392,4]
[341532896,1730964634227,-627.83786583,0.00031392,4]
[341532897,1730964634236,-500.0,0.00031392,4]
[341532898,1730964634245,-500.0,0.00031392,4]
[341532899,1730964634254,-500.0,0.00031392,4]
[341532900,1730964634263,-500.0,0.00031392,4]
[341532901,1730964634272,-1539.85,0.00031392,4]
[341532902,1730964634282,-511.2473234,0.00031392,4]
[341532903,1730964634291,-500.0,0.00031392,4]
[341532904,1730964634300,-515.16,0.00031392,4]
[341532905,1730964634310,-644.79,0.00031392,4]